Cogmind - Beta 17.1 @@@ ROGUE MODE // 2026.09.08 @ 16:15:46 Player: pinbox Result: Destroyed by QX-EUR(R) with Subdweller Beam Cannon Performance ------------- Evolutions (0) 0 Regions Visited (2) 400 Robots Destroyed (22) 110 Value Destroyed (367) 367 Prototype IDs (0) 0 Alien Tech Used (0) 0 Bonus (0) 0 TOTAL SCORE: 877 Bonus ------- None Cogmind --------- Core Integrity 0/250 Matter 174/300 Energy 96/100 System Corruption 0% Temperature Cool (11) Movement Treading (160) Location -10/Subcaves Parts ------- > --- POWER (1) -------- (None) > --- PROPULSION (2) --- Light Treads Light Treads > --- UTILITY (2) ------ Large Storage Unit Core Shielding > --- WEAPON (2) ------- Beam Cannon > --- INVENTORY (15) --- Light Treads Large Matter Pod (150) High-capacity Matter Pod (0) Seismic Detector Seismic Detector Transport Network Coupler Power Shielding Power Shielding Assault Rifle Grenade Launcher Peak State ------------ > --- POWER ------------ Ion Engine > --- PROPULSION ------- Light Treads Light Treads > --- UTILITY ---------- Large Storage Unit Seismic Detector > --- WEAPON ----------- Light Cannon Light Cannon > --- INVENTORY -------- Light Treads Large Matter Pod High-capacity Matter Pod Seismic Detector Core Shielding Power Shielding Power Shielding Beam Cannon Assault Rifle Grenade Launcher [Rating: 8] Favorites ----------- Power Ion Engine Engine Ion Engine Propulsion Light Treads Treads Light Treads Utility Seismic Detector Device Seismic Detector Storage Large Storage Unit Protection Core Shielding Weapon Light Cannon Energy Gun EM Pulse Gun Energy Cannon Beam Cannon Ballistic Gun Assault Rifle Ballistic Cannon Light Cannon Build | -11 -10 -10 ------- Run | Yrd Mat Sub Slots Evolved . | . . . Power . | . . . Propulsion . | . . . Utility . | . . . Weapon . | . . . Parts Attached 17 | 7 6 4 Power 2 | 1 1 . Engine 2 | 1 1 . Core . | . . . Reactor . | . . . Propulsion 5 | 2 1 2 Treads 5 | 2 1 2 Leg . | . . . Wheel . | . . . Hover . | . . . Flight . | . . . Utility 5 | 2 2 1 Device 2 | 1 1 . Storage 2 | 1 1 . Processor . | . . . Hackware . | . . . Protection 1 | . . 1 Artifact . | . . . Weapon 5 | 2 2 1 Energy Gun 1 | 1 . . Energy Cannon 1 | . . 1 Ballistic Gun 1 | 1 . . Ballistic Cannon 2 | . 2 . Launcher . | . . . Special Weapon . | . . . Impact Weapon . | . . . Slashing Weapon . | . . . Piercing Weapon . | . . . Special Melee Weapon . | . . . Unidentified Prototypes . | . . . Parts Lost 6 | . 1 5 Power 2 | . 1 1 Propulsion 2 | . . 2 Utility . | . . . Weapon 2 | . . 2 Highest Loss Streak 3 | . 1 3 To Critical Strikes . | . . . Average Backups 8 | . 8 12 Power . | . . . Propulsion 1 | . 1 2 Utility 4 | . 4 7 Weapon 2 | . 2 2 Tool/Special . | . . . Unused Backups 8 | . . 8 Power . | . . . Propulsion 1 | . . 1 Utility 6 | . . 6 Weapon 1 | . . 1 Tool/Special . | . . . Average Slot Usage (%) 97 | . 99 86 Engine 12 | . 13 4 Treads 27 | . 28 26 Device 11 | . 14 1 Storage 14 | . 14 14 Protection 2 | . . 12 Energy Gun 2 | . 3 . Ballistic Gun 2 | . 3 . Ballistic Cannon 22 | . 21 25 Peak Build Rating 8 | 7 8 8 Average Rating 7 | 5 7 7 On Entrance 5 | . 7 8 Avg Prop Armor Cover (%) . | . . . Naked Turns . | . . . Heaviest Build 32 | 13 32 32 Greatest Support 40 | 40 40 40 Greatest Overweight (x) 1 | . . 1 Average Overweight (x) . | . . . Largest Inventory Capacity 15 | 8 15 15 Average Capacity 12 | 7 12 15 Most Carried 13 | 1 13 13 Average Carried 8 | . 8 12 Final Capacity 15 | 8 15 15 Final Carried 13 | 1 13 10 Class Distribution -------------------- 100% | Mutant Dominant Class ---------------- Mutant | -10/Materials Mutant | -10/Subcaves Resources | -11 -10 -10 ----------- Run | Yrd Mat Sub Matter Collected 797 | 296 415 86 Remotely . | . . . Salvage Created 495 | 134 321 40 Parts 30 | 8 17 5 Haulers Intercepted 2 | . 2 . Recyclers Shooed . | . . . Parts Field Recycled . | . . . Retrieved Matter . | . . . Parts Self-Destructed 12 | . . 12 Prevented . | . . . Parts Restored . | . . . Kills | -11 -10 -10 ------- Run | Yrd Mat Sub Combat Hostiles Destroyed 15 | . 11 4 Guns 8 | . 8 . Cannons 7 | . 3 4 Classes Destroyed 6 | 2 3 1 Tunneler 2 | 2 . . Hauler 2 | . 2 . Recycler 1 | 1 . . Turret 2 | . . 2 Swarmer 10 | . 6 4 Grunt 5 | . 5 . Best Kill Streak 6 | 2 3 6 Combat Bots Only 4 | . 3 4 Max Kills in Single Turn 2 | 1 1 2 Gunslinging . | . . . Exploded . | . . . Melee . | . . . Uniques/NPCs Destroyed . | . . . Combat | -11 -10 -10 -------- Run | Yrd Mat Sub Hostile Shots Fired 180 | . 73 107 Missed 56 | . 23 33 Hits 124 | . 50 74 Projectile 124 | . 50 74 Critical Strikes 1 | . . 1 Actively Blocked 1 | . . 1 Damage Taken 1449 | 22 548 879 Core 262 | . 77 185 Absorbed by Shields . | . . . Redirected to Shielding 37 | . . 37 Core Remaining (%) 100 | 100 . . Volleys Fired 80 | 13 46 21 Largest 2 | 2 2 2 Hottest 90 | 60 60 90 Shots Fired 159 | 26 92 41 Gun 78 | 26 52 . Cannon 81 | . 40 41 Launcher . | . . . Special . | . . . Kinetic 118 | 13 66 39 Thermal 2 | . . 2 Explosive . | . . . Electromagnetic 39 | 13 26 . Robot Hit Streak 10 | 7 10 9 Robot Miss Streak 4 | 2 4 2 Penetration Max . | . . . Secondary Targets . | . . . Shots Hit Robots 106 | 16 62 28 Core Hits 26 | 3 15 8 Critical Kills . | . . . Critical Parts Destroyed . | . . . Critical Strikes 1 | . . 1 Blast 1 | . . 1 Melee Attacks . | . . . Impact . | . . . Slashing . | . . . Piercing . | . . . Sneak Attacks . | . . . Combat Hostiles . | . . . Follow-up Attacks . | . . . Damage Inflicted 1727 | 330 913 484 Guns 625 | 206 419 . Cannons 978 | . 494 484 Explosions 124 | 124 . . Melee . | . . . Ramming . | . . . Kinetic 1230 | 66 697 467 Thermal 141 | 124 . 17 Explosive . | . . . Electromagnetic 356 | 140 216 . Impact . | . . . Slashing . | . . . Piercing . | . . . Highest Corruption . | . . . Average Corruption . | . . . Corruption Purged . | . . . Corruption Blocked . | . . . Overload Shots . | . . . Overflow Damage 19 | . 8 11 Projectiles 19 | . 8 11 Explosions . | . . . Melee . | . . . Knockbacks 15 | . 6 9 Impact . | . . . Kinetic 14 | . 6 8 Secondary 1 | . . 1 Self-Inflicted Damage 23 | 23 . . Shots 1 | 1 . . Rammed . | . . . Targets Rammed . | . . . Kicked . | . . . Crushed . | . . . Highest Temperature 78 | 12 78 4 Average Temperature 38 | 12 40 4 Received Heat Transfer 462 | . 204 258 Siege Activations . | . . . Martial Activations . | . . . Shielding Activations . | . . . Robots Disrupted . | . . . Combat Hostiles . | . . . Robots Corrupted . | . . . Combat Hostiles . | . . . Parts Fried 1 | . 1 . Impact Corruptions . | . . . Robots Melted . | . . . Combat Hostiles . | . . . Parts Melted . | . . . Heat Transferred 87 | 50 . 37 Parts Sabotaged . | . . . Parts Stolen . | . . . Parts Stripped . | . . . Power Chain Reactions 2 | 2 . . Alert | -11 -10 -10 ------- Run | Yrd Mat Sub Maximum Alert Level . | . . . Low Security (%) 100 | 100 100 . Level 1 . | . . . Level 2 . | . . . Level 3 . | . . . Level 4 . | . . . Level 5 . | . . . High Security . | . . . Max Security . | . . . Peak Influence 111 | 5 111 . Initial . | . . . Average 29 | 1 32 . Influence Increases 510 | 15 345 150 Destroy 0b10 Robot/C 340 | . 220 120 Destroy 0b10 Robot/NC 25 | 15 10 . Destroy Leader 44 | . 44 . Successful Hack 39 | . 39 . Destroy Structure 2 | . 2 . Lose Combat Pursuer 60 | . 30 30 Influence Decreases 510 | 15 345 150 Time Decay 450 | 15 335 100 Lost Part 60 | . 10 50 Squads Dispatched 1 | . 1 . Investigation . | . . . Extermination . | . . . Reinforcement 1 | . 1 . Assault . | . . . Garrison . | . . . Intercept . | . . . Searches Triggered . | . . . Construction Impeded . | . . . Haulers Reinforced . | . . . Active Scanning Responses . | . . . Cargo Convoy Interrupts . | . . . Stealth | -11 -10 -10 --------- Run | Yrd Mat Sub Distress Signals 3 | . 3 . Communications Jammed . | . . . Distress Signals . | . . . Times Spotted 34 | . 24 10 Peak Tracking Total 6 | . 6 6 Tactical Retreats 3 | . 2 1 Traps | -11 -10 -10 ------- Run | Yrd Mat Sub Traps Triggered . | . . . Indirectly . | . . . Trap Hack Attempts . | . . . Triggered . | . . . Disarmed . | . . . Reprogrammed . | . . . Reused . | . . . Traps Extracted . | . . . Installed . | . . . Triggered . | . . . Machines | -11 -10 -10 ---------- Run | Yrd Mat Sub Machines Disabled 2 | . . 2 Max in Single Turn 1 | . . 1 Machines Repaired . | . . . Machines Dismantled . | . . . Machines Sabotaged . | . . . Overloaded Fab Kills . | . . . Hacking | -11 -10 -10 --------- Run | Yrd Mat Sub Machines Accessed 6 | . 6 . Terminals 6 | . 6 . Fabricators . | . . . Repair Stations . | . . . Recycling Units . | . . . Scanalyzers . | . . . Garrison Access . | . . . Total Hacks 27 | . 27 . Successful 14 | . 14 . Failed 13 | . 13 . Catastrophic 1 | . 1 . Database Lockouts . | . . . Manual 27 | . 27 . Terminals 27 | . 27 . Fabricators . | . . . Repair Stations . | . . . Recycling Units . | . . . Scanalyzers . | . . . Garrison Access . | . . . Terminal Hacks 3 | . 3 . Terminal Index 1 | . 1 . Zone Layout 2 | . 2 . Fabricator Hacks . | . . . Repair Station Hacks . | . . . Recycling Unit Hacks . | . . . Scanalyzer . | . . . Garrison Access Hacks . | . . . Unauthorized Hacks 11 | . 11 . Terminals 11 | . 11 . Assimilate 1 | . 1 . Botnet 4 | . 4 . Skim 6 | . 6 . Fabricators . | . . . Repair Stations . | . . . Recycling Units . | . . . Scanalyzers . | . . . Garrison Access . | . . . Data Cores Recovered . | . . . Used . | . . . Hacking Detections 6 | . 6 . Full Trace Events 1 | . 1 . Feedback Events . | . . . Feedback Blocked . | . . . Robot Schematics Acquired . | . . . Robots Built . | . . . Authchips . | . . . Time . | . . . Total Robot Build Rating . | . . . Part Schematics Acquired . | . . . Parts Built . | . . . Authchips . | . . . Time . | . . . Total Part Build Rating . | . . . Part Studies Acquired . | . . . Parts Repaired . | . . . Time . | . . . Parts Recycled . | . . . Recycled Matter . | . . . Retrieved Matter . | . . . Retrieved Components . | . . . Parts Scanalyzed . | . . . Part Schematics Acquired . | . . . Parts Damaged . | . . . Bothacking | -11 -10 -10 ------------ Run | Yrd Mat Sub Used RIF Installer . | . . . Robots Hacked . | . . . Non-combat . | . . . Combat . | . . . Robot Hacks Applied . | . . . Relay Couplers Released . | . . . Fabnet Peak Effective % . | . . . Robots Rewired . | . . . Allies Hacked . | . . . Hacks Repelled . | . . . Allies | -11 -10 -10 -------- Run | Yrd Mat Sub Total Allies . | . . . Largest Group . | . . . Highest-Rated Group . | . . . Highest-Rated Ally . | . . . Total Orders . | . . . Ally Attacks . | . . . Total Damage . | . . . Kills . | . . . Allies Corrupted . | . . . Allies Melted . | . . . Intel | -11 -10 -10 ------- Run | Yrd Mat Sub Active Infowar (turns) 1188 | 14 1153 21 Seismic 1188 | 14 1153 21 Robot Analysis Total . | . . . Derelict Logs Recovered 1 | . . 1 Drone Launches . | . . . Drone Recoveries . | . . . Exploration | -11 -10 -10 ------------- Run | Yrd Mat Sub Turns Passed 1533 | 123 1153 257 Spaces Moved 628 | 48 464 116 Core 3 | 3 . . Treads 625 | 45 464 116 Legs . | . . . Wheels . | . . . Hover . | . . . Flight . | . . . Fastest Speed 50 | 50 160 160 Average Speed 159 | 153 160 160 Slowest Speed 240 | 160 160 240 Overloaded Moves . | . . . Propulsion Burnouts . | . . . Robots Hopped . | . . . Potential Cave-ins . | . . . Cave-ins Triggered . | . . . Exploration Rate (%) 24 | 3 66 4 Regions Visited 2 Branch Regions 1 Pre-discovered Areas . | . . . Known Exits Taken . | . . . Unknown Exits Taken 2 | 1 1 . Scrap Searched . | . . . Spaces Dug . | . . . Terrain Destroyed 7 | 7 . . Melee . | . . . Projectile . | . . . AOE 7 | 7 . . Terrain Rammed . | . . . Walls Destroyed . | . . . Machines Disabled . | . . . Actions | -11 -10 -10 --------- Run | Yrd Mat Sub Total 999 | 68 785 146 Wait 257 | . 252 5 Move 626 | 47 463 116 Hop . | . . . Pick Up 13 | 1 12 . Fast Attach 9 | 7 2 . Attach 4 | . 1 3 Detach 2 | . 2 . Swap 4 | . 3 1 Drop 4 | . 4 . Fire 80 | 13 46 21 Melee . | . . . Ram . | . . . Kick . | . . . Crush . | . . . Escape Stasis . | . . . Rewire . | . . . Trap . | . . . Miscellaneous . | . . . Route ------- -11/Scrapyard -10/Materials (discovered 5 exits: *Mat x3 / [*Min] / [*Sub]) -10/Subcaves (discovered 2 exits: Mat / *Rec) History --------- Turn | Location | Event 14 | -11/Scrapyard | Discovered new exit (range 16) 124 | -11/Scrapyard | Entered Materials 302 | -10/Materials | Build established: Mutant 313 | -10/Materials | Discovered new exit (range 16) 399 | -10/Materials | Discovered new exit (range 14) 802 | -10/Materials | Discovered new exit (range 8) 859 | -10/Materials | Learned Storage non-interactive machine intel 927 | -10/Materials | Learned Storage security intel 984 | -10/Materials | Identified exit to Materials 984 | -10/Materials | Learned location of 1 exit from Materials 1030 | -10/Materials | Learned location of 1 exit from Recycling 1068 | -10/Materials | Learned location of 2 exits from Mines 1119 | -10/Materials | Loaded intel: 13 trap records 1152 | -10/Materials | Learned location of 2 exits from Subcaves 1247 | -10/Materials | Learned location of 1 exit from Storage 1277 | -10/Materials | Entered Subcaves 1278 | -10/Subcaves | Approached by a straggling Scientist 1278 | -10/Subcaves | Identified exit to Materials 1278 | -10/Subcaves | Identified exit to Recycling 1282 | -10/Subcaves | Learned Materials stockpile data 1338 | -10/Subcaves | Core integrity fell below 50% 1512 | -10/Subcaves | Core integrity fell below 20% 1534 | -10/Subcaves | Destroyed by QX-EUR(R) with Subdweller Beam Cannon Last Messages --------------- 01361_ Acquired 4 matter. 86-DPI(c): "I think it's somewhere northeast of here" 01385_ Acquired 19 matter. 01388_ Acquired 3 matter. 01391_ Acquired 12 matter. 01399_ Acquired 3 matter. 01428_ Acquired 4 matter. 86-DPI(c): "I think it's somewhere northeast of here" 01504_ AN-G5O(R) Disposable Heat Sink blasted off. 01504_ AN-G5O(R) knocked back. 01507_ Subatomizers dissect the Disposable Heat Sink. 01507_ AN-G5O(R) knocked back. 01507_ Lgt. Treads destroyed. 01509_ Lgt. Cannon destroyed. 01520_ Subatomizers dissect the Disposable Heat Sink. Map ----- +----------------------------------------------------+ | ?????????????????????????????????????????????????? | | ?????????????????????????????????????????????????? | | ?????????????????????????????????????????????????? | | ?????????????????????????????????????????????????? | | ?????????????????????????? ????????????????????? | | ????????????????????????" "????????????????????? | | ??????????????????????##"" "????????????????????? | | ??????????????????????# " ""????????????????????? | | ??????????????????????"" " ???????????????????? | | ?????????????????????? """"" ??????????????????? | | ??????????????????????# """" ???????????????????? | | ??????????????????????# """?????????????????????? | | ??????????????????????# "#??????????????????????? | | ??????????????????##### "#???????????????????????? | | ??????????????????# ! #?????? ????????????????? | | ????????????####??# ""###" #????????????????? | | ????????????# ##?# %%% "" #?????????????????? | | ????????????## ### "# #?????????????????? | | ?????????????# ## ##? ##????????????????? | | ?????????????# # #?? #????????????????? | | ?????????????## ## ##?### #????????????????? | | ?????????????## R##### ########??????????? | | ????????????## # R # #" """#??????????? | | ????????????# #### ## "#??????????? | | ????????????## ### ####### "#??????????? | | ?????????????## ## @ "##?????????? | | ??????????????#### >#?????????? | | ?????????????????# "##?????????? | | ?????????????????# ####### "#??????????? | | ?????????????????## ##?????# "#??????????? | | ??????????????????# ##??????#" """#??????????? | | ??????????????????# ##???????########??????????? | | ??????????????????## ##??????????????????????????? | | ???????????????????###???????????????????????????? | | ?????????????????????????????????????????????????? | | ?????????????????????????????????????????????????? | | ?????????????????????????????????????????????????? | | ?????????????????????????????????????????????????? | | ?????????????????????????????????????????????????? | | ?????????????????????????????????????????????????? | | ?????????????????????????????????????????????????? | | ?????????????????????????????????????????????????? | | ?????????????????????????????????????????????????? | | ?????????????????????????????????????????????????? | | ?????????????????????????????????????????????????? | | ?????????????????????????????????????????????????? | | ??????????????????